bitfinex-derivatives/quotes_SOLF0:USTF0_20250905
["timestamp","ask_amount","ask_price","bid_price","bid_amount"]
[1757079669790,7.53,209.33,209.16,7.89]
[1757079670085,8.89924996,209.31,209.16,7.89]
[1757079670391,7.53,209.3,209.16,7.89]
[1757079671186,29.79,209.3,209.16,7.89]
[1757079672190,7.53,209.3,209.16,7.89]
[1757079673689,7.53,209.29,209.11,7.89]
[1757079674283,7.53,209.25,209.11,7.89]
[1757079674788,7.53,209.25,209.06,13.12590968]
[1757079675091,7.53,209.21,209.06,13.12590968]
[1757079676797,134.65,209.27,209.07,7.89]
[1757079677997,134.65,209.27,209.11,4.3027]
[1757079678197,7.53,209.27,209.12,7.47]
[1757079679097,307.92,209.29,209.15,7.47]
[1757079679391,5.24876892,209.31,209.15,7.47]
[1757079679591,5.24876892,209.31,209.2,4.3009]
[1757079679791,5.24876892,209.31,209.21,7.47]
[1757079680693,5.24876892,209.31,209.21,11.771]
[1757079680896,5.24876892,209.31,209.21,7.47]
[1757079681092,5.24876892,209.31,209.22,7.47]
[1757079681298,5.24876892,209.31,209.27,4.2998]
[1757079681497,5.24876892,209.31,209.28,7.47]
[1757079681699,5.24876892,209.31,209.26,4.2999]
[1757079681897,5.24876892,209.31,209.23,7.47]
[1757079682598,7.9,209.38,209.23,7.47]
[1757079683091,7.9,209.36,209.23,7.47]
[1757079683698,315.84,209.42,209.25,7.47]
[1757079684200,315.84,209.42,209.25,11.7702]
[1757079684400,315.84,209.42,209.25,7.47]
[1757079685598,7.9,209.4,209.25,7.47]
[1757079685794,7.9,209.4,209.31,0.03163005]
[1757079686695,5.24876892,209.44,209.31,0.03163005]
[1757079686896,13.14876892,209.44,209.31,0.03163005]
[1757079687099,5.24876892,209.44,209.32,7.47]
[1757079687298,5.24876892,209.44,209.35,0.03268294]
[1757079687498,5.24876892,209.44,209.36,7.47]
[1757079688900,13.14876892,209.46,209.36,7.47]
[1757079689498,5.24876892,209.46,209.36,7.47]
[1757079691392,13.14876892,209.46,209.36,7.47]
[1757079692396,13.14876892,209.46,209.35,0.03268294]
[1757079692702,13.14876892,209.46,209.35,7.50268294]
[1757079693402,5.24876892,209.46,209.35,7.50268294]
[1757079694202,5.24876892,209.46,209.38,7.47]
[1757079694599,7.9,209.5,209.38,7.47]
[1757079694997,7.9,209.5,209.38,16.36924996]
[1757079695200,7.9,209.58,209.39,7.47]
[1757079696000,87.8740864,209.59,209.39,7.47]
[1757079696201,7.9,209.58,209.42,7.47]
[1757079696407,7.9,209.58,209.44,7.47]
[1757079696806,7.9,209.58,209.38,134.49]
[1757079697008,14.14801888,209.59,209.38,134.49]
[1757079697307,14.14801888,209.59,209.38,138.7871]
[1757079697702,7.9,209.58,209.38,134.49]
[1757079697902,7.9,209.58,209.4,4.2968]
[1757079698302,14.14801888,209.59,209.4,106.52]
[1757079698506,7.9,209.58,209.4,106.52]
[1757079699004,7.9,209.58,209.38,7.47]
[1757079699209,14.14801888,209.59,209.39,127.0]
[1757079699400,7.9,209.58,209.38,7.47]
[1757079699603,8.89924996,209.55,209.38,7.47]
[1757079699806,7.9,209.54,209.38,7.47]
[1757079700005,7.9,209.54,209.38,11.7673]
[1757079700206,7.9,209.54,209.38,7.47]
[1757079701410,7.9,209.5,209.33,80.35]
[1757079701612,8.89924996,209.51,209.33,80.35]
[1757079701807,7.9,209.5,209.33,7.47]
[1757079702111,7.9,209.46,209.4,0.03451876]
[1757079702311,18.92,209.46,209.4,0.03451876]
[1757079702611,18.92,209.46,209.28,7.47]
[1757079703004,7.9,209.42,209.27,7.88159997]
[1757079703406,7.9,209.42,209.27,15.35159997]
[1757079703712,26.12,209.42,209.27,15.35159997]
[1757079705014,26.12,209.42,209.27,7.88159997]
[1757079705206,7.9,209.38,209.27,7.88159997]
[1757079705606,8.89924996,209.35,209.27,7.88159997]
[1757079705916,7.9,209.34,209.27,7.88159997]
[1757079706118,9.37924996,209.35,209.27,7.88159997]
[1757079706416,7.9,209.34,209.27,7.88159997]
[1757079706614,7.9,209.34,209.18,11.7713]
[1757079706814,7.9,209.34,209.19,7.47]
[1757079707816,13.44275918,209.38,209.23,7.47]
[1757079708611,7.9,209.38,209.23,7.47]
[1757079708806,5.54275918,209.35,209.13,7.35]
[1757079709008,5.54275918,209.31,209.13,12.89275918]
[1757079709213,7.78,209.26,209.13,7.35]
[1757079710207,5.54275918,209.27,209.13,7.35]
[1757079710407,7.78,209.31,209.15,7.35]
[1757079710408,13.32275918,209.31,209.15,7.35]
[1757079712517,13.32275918,209.27,209.15,7.35]
[1757079715821,7.78,209.26,209.09,7.35]
[1757079716120,7.78,209.22,209.09,7.35]
[1757079716717,7.78,209.22,209.09,12.89275918]
[1757079716917,7.78,209.22,209.1,4.3029]
[1757079717422,7.78,209.22,209.09,12.89275918]
[1757079717621,7.78,209.22,209.09,7.35]
[1757079718222,7.78,209.22,209.09,11.6532]
[1757079718426,7.78,209.22,209.1,7.35]
[1757079718928,7.78,209.26,209.11,7.35]
[1757079719316,7.78,209.26,209.13,4.3021]
[1757079719625,7.78,209.31,209.15,7.35]
[1757079720421,7.78,209.31,209.14,112.342]
[1757079720422,7.78,209.31,209.14,174.964]
[1757079720728,7.78,209.31,209.18,7.35]
[1757079720921,5.24876892,209.38,209.28,5.54275918]
[1757079721129,5.24876892,209.38,209.29,7.35]
[1757079723027,7.78,209.42,209.29,7.35]
[1757079723629,7.78,209.42,209.29,12.89275918]
[1757079724222,7.78,209.42,209.29,7.35]
[1757079724630,7.78,209.42,209.32,7.35]
[1757079725020,5.24876892,209.43,209.32,7.35]
[1757079726230,5.24876892,209.43,209.32,11.648]
[1757079726422,5.24876892,209.43,209.32,7.35]
[1757079726730,7.78,209.42,209.31,5.54275918]
[1757079727230,7.78,209.42,209.28,7.35]
[1757079727731,7.78,209.42,209.28,11.649]
[1757079728230,7.78,209.42,209.28,7.35]
[1757079728831,7.78,209.42,209.28,11.6489]
[1757079729128,7.78,209.42,209.28,7.35]
[1757079729324,1323.76876892,209.58,209.29,7.35]
[1757079729530,7.78,209.48,209.32,7.35]
[1757079729928,7.78,209.48,209.36,7.35]
[1757079730527,7.78,209.48,209.38,4.297]
[1757079730731,7.78,209.48,209.36,7.35]
[1757079731331,7.78,209.48,209.37,4.2972]
[1757079731629,13.32275918,209.53,209.36,63.5]
[1757079731933,7.78,209.53,209.4,7.35]
[1757079732635,13.02876892,209.58,209.44,7.35]
[1757079733224,7.78,209.58,209.44,7.35]
[1757079734529,7.78,209.58,209.45,4.2955]
[1757079734834,7.78,209.58,209.44,7.35]
[1757079735538,5.24876892,209.63,209.48,7.35]
[1757079735930,5.24876892,209.63,209.49,0.03175109]
[1757079736133,5.24876892,209.63,209.48,7.35]
[1757079736437,5.24876892,209.63,209.54,7.38365866]
[1757079737739,5.24876892,209.63,209.54,0.03365866]
[1757079739342,74.5422,209.64,209.54,0.03365866]
[1757079739834,7.78,209.62,209.54,0.03365866]
[1757079740735,7.78,209.58,209.54,0.03365866]
[1757079741330,5.54275918,209.59,209.54,0.03365866]
[1757079742240,7.78,209.58,209.54,0.03365866]
[1757079742635,74.5422,209.64,209.54,0.03365866]
[1757079743144,7.78,209.64,209.54,0.03365866]
[1757079744049,5.54275918,209.63,209.54,0.03365866]
[1757079744854,7.78,209.62,209.54,0.03365866]
[1757079745347,5.54275918,209.68,209.51,12.2846]
[1757079745853,7.78,209.67,209.52,4.2943]
[1757079746053,7.78,209.67,209.53,7.99]
[1757079746848,7.78,209.72,209.56,7.99]
[1757079747458,13.32275918,209.69,209.56,7.99]
[1757079747849,7.78,209.69,209.56,7.99]
[1757079750355,7.78,209.69,209.57,4.2931]
[1757079750553,13.32275918,209.69,209.56,7.99]
[1757079751561,13.32275918,209.69,209.49,7.99]
[1757079751758,7.78,209.68,209.5,49.92]
[1757079752057,7.78,209.6,209.45,4.48418]
[1757079752356,7.78,209.6,209.45,0.18858]
[1757079753058,7.78,209.6,209.46,7.99]
[1757079754057,7.78,209.6,209.49,4.2948]
[1757079754560,5.54275918,209.68,209.51,5.54275918]
[1757079754856,7.78,209.67,209.52,7.99]
[1757079755054,7.78,209.67,209.52,74.7902]
[1757079755252,7.78,209.67,209.55,5.54275918]
[1757079756853,7.78,209.67,209.54,7.99]
[1757079757856,7.78,209.67,209.54,13.53275918]
[1757079758754,7.78,209.67,209.54,7.99]
[1757079759559,7.78,209.67,209.49,7.99]
[1757079759756,32.06,209.74,209.49,7.99]
[1757079759757,7.78,209.63,209.49,7.99]
[1757079759954,7.78,209.63,209.49,12.2848]
[1757079760160,7.78,209.63,209.49,7.99]
[1757079760463,7.78,209.63,209.49,12.2848]
[1757079760656,7.78,209.63,209.5,7.99]
[1757079760860,7.78,209.63,209.51,5.54275918]
[1757079761260,7.78,209.63,209.47,5.54275918]
[1757079761458,7.78,209.6,209.45,8.17858]
[1757079762061,7.78,209.6,209.5,0.03035752]
[1757079762257,7.78,209.6,209.5,8.02035752]
[1757079762858,13.32275918,209.65,209.5,8.02035752]
[1757079763158,13.32275918,209.7,209.52,7.99]
[1757079763465,7.78,209.7,209.55,5.54275918]
[1757079763758,7.78,209.7,209.56,7.99]
[1757079765161,7.78,209.7,209.57,4.2935]
[1757079765360,7.78,209.7,209.56,7.99]
[1757079766264,7.78,209.7,209.57,4.2935]
[1757079767163,7.78,209.7,209.56,7.99]
[1757079767363,7.78,209.7,209.56,13.53275918]
[1757079767665,7.78,209.7,209.58,4.2931]
[1757079767859,95.67963597,209.77,209.61,7.99]
[1757079767860,7.78,209.76,209.61,7.99]
[1757079768066,7.78,209.76,209.65,5.54275918]
[1757079768856,7.78,209.76,209.61,7.99]
[1757079769061,7.78,209.76,209.61,82.31275918]
[1757079769262,7.78,209.76,209.61,12.2825]
[1757079769462,7.78,209.76,209.61,7.99]
[1757079770767,7.78,209.76,209.62,4.2922]
[1757079770968,7.78,209.76,209.61,7.99]
[1757079771571,7.78,209.76,209.61,12.2823]
[1757079771771,7.78,209.76,209.61,7.99]
[1757079771968,16.65187278,209.76,209.61,7.99]
[1757079773170,7.89,209.75,209.56,35.4734]
[1757079773368,8.87187278,209.76,209.56,35.4734]
[1757079773667,7.89,209.75,209.57,4.2931]
[1757079773871,7.89,209.71,209.56,7.52]
[1757079774168,7.89,209.67,209.5,7.52]
[1757079774368,7.89,209.67,209.56,3.97470933]
[1757079775464,7.89,209.63,209.56,3.97470933]
[1757079776171,0.48,209.62,209.56,3.97470933]
[1757079776471,7.89,209.63,209.56,3.97470933]
[1757079777766,8.87187278,209.61,209.53,5.23590968]
[1757079777970,7.89,209.6,209.53,5.23590968]
[1757079778166,7.89,209.56,209.53,5.23590968]
[1757079778573,8.87187278,209.6,209.53,5.23590968]
[1757079779475,8.87187278,209.6,209.48,7.52]
[1757079779974,7.89,209.59,209.44,5.23590968]
[1757079781074,8.87187278,209.64,209.48,7.52]
[1757079781273,7.89,209.64,209.49,7.52]
[1757079781872,7.89,209.64,209.52,7.52]
[1757079784374,5.24876892,209.73,209.53,66.8033]
[1757079784579,7.89,209.72,209.54,7.52]
[1757079785576,7.89,209.68,209.54,7.52]
[1757079786274,116.65187278,209.69,209.48,11.71590968]
[1757079786480,116.65187278,209.69,209.48,12.75590968]
[1757079786878,7.89,209.64,209.48,12.75590968]
[1757079787679,7.89,209.64,209.48,7.52]
[1757079788877,7.89,209.64,209.48,66.819]
[1757079789081,7.89,209.64,209.49,7.52]
[1757079790280,7.89,209.59,209.47,0.19891]
[1757079793984,41.51,209.59,209.47,0.19891]
[1757079794792,7.89,209.59,209.47,0.19891]
[1757079795087,7.89,209.55,209.47,0.19891]
[1757079796779,7.89,209.51,209.38,5.23590968]
[1757079796989,7.89,209.47,209.38,5.23590968]
[1757079798493,90.76,209.58,209.39,7.74]
[1757079798693,90.76,209.58,209.39,12.037]
[1757079799190,7.94,209.57,209.41,4.2967]
[1757079799390,7.94,209.57,209.42,7.74]
[1757079799997,74.7299,209.57,209.42,7.74]
[1757079800288,7.94,209.57,209.42,7.74]
[1757079800489,66.7947,209.55,209.42,7.74]
[1757079801092,7.94,209.57,209.42,7.74]
[1757079802389,4.294,209.55,209.42,7.74]
[1757079802587,66.7953,209.55,209.42,7.74]
[1757079802792,66.8066,209.51,209.42,7.74]
[1757079802989,66.8128,209.49,209.38,0.1741]
[1757079803289,7.94,209.53,209.38,0.1741]
[1757079803493,4.2952,209.49,209.38,0.1741]
[1757079804192,4.2952,209.49,209.39,7.74]
[1757079804395,4.2954,209.48,209.39,7.74]
[1757079804791,7.94,209.53,209.39,7.74]
[1757079805093,66.8032,209.52,209.39,7.74]
[1757079805684,66.8257,209.45,209.38,0.1741]
[1757079805888,66.8293,209.44,209.38,0.1741]
[1757079806087,7.94,209.39,209.38,0.0001]
[1757079807196,7.94,209.45,209.38,0.0001]
[1757079807986,16.81187278,209.45,209.38,0.0001]
[1757079809095,17.29187278,209.45,209.29,7.88159997]
[1757079809390,7.94,209.36,209.29,7.88159997]
[1757079809597,8.87187278,209.37,209.29,7.88159997]
[1757079809793,7.94,209.36,209.29,7.88159997]
[1757079809998,7.94,209.37,209.32,0.03469831]
[1757079810195,135.21187278,209.38,209.32,0.03469831]
[1757079810398,134.28,209.37,209.32,0.03469831]
[1757079810596,8.87187278,209.38,209.32,0.03469831]
[1757079810799,29.2,209.39,209.32,0.03469831]
[1757079810994,7.94,209.38,209.32,0.03469831]
[1757079811198,7.94,209.38,209.29,7.88159997]
[1757079811391,7.94,209.38,209.33,0.03146048]
[1757079811597,7.94,209.36,209.29,7.88159997]
[1757079812601,7.94,209.36,209.19,12.0411]
[1757079812903,7.94,209.36,209.19,7.74]
[1757079813295,0.03166975,209.3,209.19,12.0413]
[1757079814501,0.03166975,209.3,209.22,7.74]
[1757079814801,7.94,209.36,209.22,7.74]
[1757079815199,0.0312699,209.28,209.22,7.74]
[1757079815704,0.0312699,209.28,209.16,7.74]
[1757079816100,7.94,209.28,209.16,7.74]
[1757079816404,0.0331808,209.24,209.16,7.74]
[1757079816593,0.0331808,209.24,209.2,0.03671364]
[1757079816793,0.0331808,209.24,209.21,7.74]
[1757079817297,0.0331808,209.24,209.2,0.51671364]
[1757079817498,0.0331808,209.24,209.23,7.74]
[1757079817700,7.94,209.38,209.23,8.22]
[1757079817901,7.94,209.38,209.23,7.74]
[1757079818503,7.94,209.38,209.24,7.74]
[1757079820806,7.94,209.31,209.17,7.74]
[1757079821008,134.28,209.31,209.17,7.74]
[1757079821806,7.94,209.31,209.17,7.74]
[1757079822011,134.28,209.31,209.17,12.0415]
[1757079822206,134.28,209.31,209.17,7.74]
[1757079822406,7.94,209.31,209.17,7.74]
[1757079823011,7.94,209.31,209.19,4.3013]
[1757079823209,126.34,209.34,209.2,7.74]
[1757079823511,16.81187278,209.33,209.2,7.74]
[1757079823908,126.34,209.32,209.2,7.74]
[1757079824412,7.94,209.31,209.14,7.74]
[1757079825512,67.68,209.35,209.17,7.74]
[1757079826510,7.94,209.34,209.17,7.74]
[1757079827008,7.94,209.32,209.17,7.74]
[1757079827214,7.94,209.32,209.19,7.74]
[1757079827416,7.94,209.38,209.19,7.74]
[1757079827610,90.6,209.38,209.23,4.3003]
[1757079827815,90.6,209.38,209.21,7.74]
[1757079828213,7.94,209.38,209.26,0.03511757]
[1757079829517,5.54262371,209.36,209.26,0.03511757]
[1757079829921,7.94,209.38,209.26,7.60511757]
[1757079830315,7.94,209.38,209.26,0.03511757]
[1757079831219,7.41,209.35,209.26,0.03511757]
[1757079831419,7.41,209.31,209.26,0.03511757]
[1757079831619,7.41,209.27,209.15,7.57]
[1757079832319,12.95262371,209.32,209.19,7.57]
[1757079832613,71.8,209.31,209.19,7.57]
[1757079832818,139.25262371,209.32,209.19,7.57]
[1757079833116,12.95262371,209.32,209.19,7.57]
[1757079833319,7.41,209.32,209.19,7.57]
[1757079834019,5.54262371,209.36,209.24,7.57]
[1757079834319,7.41,209.38,209.24,7.57]
[1757079836920,7.41,209.38,209.25,4.2999]
[1757079837320,7.41,209.38,209.24,7.57]
[1757079837820,7.41,209.38,209.21,11.8709]
[1757079838217,98.83,209.38,209.22,5.54262371]
[1757079838423,98.83,209.38,209.23,7.57]
[1757079838719,7.41,209.36,209.19,7.57]
[1757079839020,7.41,209.32,209.19,7.57]
[1757079839217,7.41,209.32,209.2,4.3011]
[1757079839618,7.41,209.32,209.19,7.57]
[1757079840216,5.54262371,209.37,209.21,7.57]
[1757079840424,7.41,209.38,209.23,7.57]
[1757079840821,12.95262371,209.38,209.23,7.57]
[1757079841219,7.41,209.33,209.23,7.57]
[1757079841620,12.95262371,209.33,209.23,7.57]
[1757079842124,5.54262371,209.37,209.23,7.57]
[1757079842522,7.41,209.38,209.24,7.57]
[1757079842824,7.41,209.38,209.28,11.8693]
[1757079843024,7.41,209.38,209.28,7.57]
[1757079843622,7.41,209.45,209.28,7.57]
[1757079843820,133.63,209.45,209.32,4.2986]
[1757079844020,133.63,209.45,209.32,11.8686]
[1757079844229,7.41,209.45,209.36,0.03026316]
[1757079844920,7.41,209.45,209.36,7.60026316]
[1757079845126,5.49163892,209.46,209.36,7.60026316]
[1757079845929,0.24287,209.46,209.36,11.89816316]
[1757079846320,0.24287,209.46,209.36,7.60026316]
[1757079846621,0.24287,209.46,209.37,7.57]
[1757079848629,7.41,209.45,209.36,0.03026316]
[1757079849428,0.24287,209.46,209.36,7.60026316]
[1757079849824,7.65287,209.46,209.36,0.03026316]
[1757079852626,7.41,209.42,209.36,0.03026316]
[1757079853230,5.54262371,209.38,209.36,0.03026316]
[1757079853431,7.41,209.37,209.36,0.03026316]
[1757079854627,7.41,209.37,209.27,3.96906025]
[1757079855732,0.03070485,209.34,209.27,3.96906025]
[1757079856036,0.03070485,209.34,209.23,7.57]
[1757079857629,0.03070485,209.34,209.24,4.3]
[1757079857835,0.03070485,209.34,209.25,7.57]
[1757079858035,7.41,209.37,209.25,7.57]
[1757079858231,0.0311135,209.32,209.25,7.57]
[1757079858730,0.0311135,209.32,209.28,7.33]
[1757079858929,0.0311135,209.32,209.27,5.54262371]
[1757079859128,0.0311135,209.32,209.28,7.33]
[1757079859333,0.0311135,209.32,209.27,5.54262371]
[1757079859533,0.0311135,209.32,209.28,7.33]
[1757079859935,0.0311135,209.32,209.28,4.2993]
[1757079860131,0.0311135,209.32,209.28,4.7793]
[1757079860336,5.24876892,209.43,209.32,7.33]
[1757079862039,7.76,209.44,209.32,7.33]
[1757079862631,0.24287,209.46,209.36,0.03166593]
[1757079862632,7.76,209.4,209.36,0.03166593]
[1757079862837,5.54262371,209.41,209.36,0.03166593]
[1757079863037,7.76,209.4,209.36,0.03166593]
[1757079863237,5.54262371,209.41,209.36,0.03166593]
[1757079863437,7.76,209.4,209.36,0.03166593]
[1757079863641,5.54262371,209.45,209.36,0.03166593]
[1757079863836,13.30262371,209.45,209.36,0.03166593]
[1757079865339,7.76,209.45,209.36,0.03166593]
[1757079865840,7.76,209.45,209.37,7.33]
[1757079866041,0.24287,209.46,209.37,11.6275]
[1757079866237,0.24287,209.46,209.37,7.33]
[1757079866737,0.24287,209.46,209.37,11.6271]
[1757079867046,0.24287,209.46,209.37,7.33]
[1757079867942,5.24876892,209.49,209.37,7.33]
[1757079868741,7.76,209.48,209.37,7.33]
[1757079868943,13.30262371,209.48,209.41,0.03205]
[1757079870641,7.76,209.48,209.41,0.03205]
[1757079871544,10.79139263,209.52,209.41,0.03205]
[1757079871745,5.24876892,209.52,209.41,0.03205]
[1757079873245,5.24876892,209.52,209.42,7.33]
[1757079873834,7.90001495,209.54,209.48,7.33]
[1757079874039,0.21075,209.57,209.5,6.33]
[1757079874640,0.21075,209.57,209.51,6.33]
[1757079874838,0.21075,209.57,209.51,136.5643]
[1757079875040,0.21075,209.57,209.52,6.33]
[1757079875238,0.21075,209.57,209.54,5.54262371]
[1757079875439,10.56316715,209.6,209.54,5.54262371]
[1757079875638,10.56316715,209.6,209.55,6.12]
[1757079875941,7.76,209.69,209.55,125.92]
[1757079876146,7.76,209.69,209.54,6.12]
[1757079876548,5.54262371,209.66,209.54,6.12]
[1757079876737,7.76,209.65,209.54,6.12]
[1757079878743,7.76,209.65,209.49,6.12]
[1757079881147,7.76,209.65,209.5,103.94]
[1757079881353,7.76,209.65,209.51,6.12]
[1757079882460,7.76,209.65,209.52,5.54262371]
[1757079882647,5.54262371,209.71,209.53,6.12]
[1757079882841,7.76,209.7,209.57,6.12]
[1757079884551,7.76,209.7,209.61,0.03630555]
[1757079884751,7.76,209.7,209.61,6.15630555]
[1757079885651,7.76,209.7,209.61,0.03630555]
[1757079885949,5.54262371,209.65,209.51,6.12]
[1757079886156,7.76,209.64,209.51,6.12]
[1757079886352,7.76,209.64,209.45,5.54262371]
[1757079886548,7.76,209.6,209.49,3.96906025]
[1757079887353,0.0309331,209.57,209.49,3.96906025]
[1757079887958,0.0309331,209.57,209.5,6.16]
[1757079888253,0.0309331,209.57,209.5,10.4548]
[1757079888454,0.0309331,209.57,209.5,6.14]
[1757079888851,0.0309331,209.57,209.5,6.62]
[1757079889052,7.69,209.71,209.54,6.14]
[1757079889254,7.69,209.71,209.55,6.11]
[1757079889454,7.69,209.71,209.56,4.2937]
[1757079890053,7.69,209.71,209.57,6.11]
[1757079890457,7.69,209.71,209.57,11.65262371]
[1757079891556,7.69,209.71,209.57,6.11]
[1757079895058,7.69,209.71,209.57,10.4034]
[1757079896763,7.69,209.71,209.57,6.11]
[1757079897359,7.69,209.71,209.59,4.293]
[1757079897965,7.69,209.71,209.57,10.4036]
[1757079898259,8.87465244,209.66,209.49,6.11]
[1757079898458,7.69,209.65,209.5,4.2948]
[1757079898653,7.69,209.65,209.49,6.11]
[1757079898860,7.69,209.61,209.49,6.11]
[1757079900461,7.69,209.61,209.48,3.96906025]
[1757079900662,7.69,209.58,209.48,3.96906025]
[1757079901565,322.01,209.81,209.48,10.07906025]
[1757079901566,7.69,209.64,209.48,10.07906025]
[1757079901761,8.87465244,209.65,209.48,3.96906025]
[1757079901967,7.69,209.6,209.48,3.96906025]
[1757079902962,16.98,209.66,209.48,3.96906025]
[1757079902963,7.69,209.56,209.48,3.96906025]
[1757079903366,8.87465244,209.53,209.48,3.96906025]
[1757079903570,7.69,209.52,209.48,3.96906025]
[1757079903865,8.87465244,209.53,209.48,3.96906025]
[1757079904163,7.69,209.52,209.48,3.96906025]
[1757079904365,7.69,209.54,209.48,3.96906025]
[1757079905170,7.69,209.54,209.41,6.11]
[1757079905465,7.69,209.5,209.38,6.11]
[1757079905768,7.69,209.5,209.38,10.4074]
[1757079906068,7.69,209.5,209.38,6.11]
[1757079906971,7.69,209.5,209.37,3.96906025]
[1757079906972,7.69,209.55,209.41,6.11]
[1757079907467,16.56465244,209.55,209.37,3.96906025]
[1757079907660,8.87465244,209.47,209.37,3.96906025]
[1757079907857,7.69,209.46,209.37,3.96906025]
[1757079908059,8.87465244,209.5,209.38,6.11]
[1757079908671,7.69,209.51,209.38,6.11]
[1757079910670,7.69,209.51,209.39,4.2972]
[1757079910869,7.69,209.51,209.38,6.11]
[1757079911569,7.69,209.45,209.31,3.96906025]
[1757079911778,7.69,209.41,209.31,3.96906025]
[1757079912072,7.69,209.41,209.31,10.07906025]
[1757079912875,7.69,209.47,209.31,10.07906025]
[1757079913772,8.87465244,209.49,209.31,10.07906025]
[1757079913978,7.69,209.48,209.31,10.07906025]
[1757079914181,7.69,209.48,209.31,14.37796025]
[1757079914478,7.69,209.44,209.31,10.07906025]
[1757079914680,7.69,209.44,209.31,3.96906025]
[1757079914979,8.87465244,209.45,209.31,10.07906025]
[1757079915278,7.69,209.46,209.34,4.2983]
[1757079916180,7.69,209.5,209.32,6.11]
[1757079916379,7.69,209.5,209.31,79.71601269]
[1757079916380,7.69,209.5,209.35,6.11]
[1757079917178,16.56465244,209.5,209.35,6.11]
[1757079917578,7.69,209.45,209.31,3.96906025]
[1757079917781,7.69,209.41,209.31,3.96906025]
[1757079918272,33.84,209.45,209.31,3.96906025]
[1757079918273,7.66,209.37,209.31,3.96906025]
[1757079918980,7.66,209.35,209.32,0.03027898]
[1757079919490,0.03615655,209.36,209.32,0.03027898]
[1757079919677,7.66,209.35,209.32,0.03027898]
[1757079919872,0.03615655,209.36,209.32,0.03027898]
[1757079920080,7.66,209.35,209.32,0.03027898]
[1757079920279,0.03615655,209.36,209.32,0.03027898]
[1757079920671,7.66,209.32,209.25,7.88159997]
[1757079920875,8.87465244,209.27,209.2,1.33107034]
[1757079921078,8.87465244,209.23,209.2,1.33107034]
[1757079921279,8.87465244,209.23,209.15,13.03883793]
[1757079921482,8.87465244,209.19,209.15,13.03883793]
[1757079921978,8.90538147,209.19,209.15,13.03883793]
[1757079923174,0.03072903,209.19,209.15,13.03883793]
[1757079924379,9.35465244,209.18,209.07,18.60932574]
[1757079924585,8.87465244,209.14,209.07,18.60932574]
[1757079924977,0.03186694,209.13,208.99,7.59]
[1757079925178,32.81186694,209.13,208.99,7.59]
[1757079925483,8.87465244,209.14,208.99,7.59]
[1757079925685,0.0337599,209.08,208.99,7.59]
[1757079925885,0.0337599,209.08,209.0,4.305]
[1757079926086,19.53465244,209.16,209.01,7.59]
[1757079926279,0.03262222,209.06,209.01,7.59]
[1757079926479,0.03262222,209.06,208.99,11.8953]
[1757079926682,8.87465244,209.12,208.99,7.59]
[1757079926877,0.03098044,209.05,208.99,7.59]
[1757079930991,0.03098044,209.05,208.99,11.8951]